[Event "ChessKid Cup Div-III 2023"]
[Site "Online"]
[Date "2023.05.25"]
[Round "56.2"]
[White "Navara, David"]
[Black "Bernadskiy, Vitaliy"]
[Result "1-0"]
[ECO "C65"]
[WhiteElo "2678"]
[BlackElo "2592"]
[Annotator "TA"]
[PlyCount "125"]
[EventDate "2023.05.21"]
[EventType "k.o."]
[EventCountry "NET"]
[SourceTitle "playchess.com"]
[Source "ChessBase"]
[SourceQuality "1"]
[TimeControl "900+3"]

{[%evp 9,125,3,17,20,33,2,15,0,11,5,25,26,16,7,34,25,61,62,67,42,75,44,60,57,59,59,50,63,66,72,69,25,33,-64,325,329,383,378,352,349,352,345,538,535,535,531,522,480,713,459,583,532,804,660,1021,1008,999,864,725,1046,1052,1052,1012,945,706,596,860,818,549,427,1427,1331,772,745,12821,12823,12826,12826,12826,12824,12824,12825,12824,12823,12825,12825,12833,12831,12832,12824,12831,12825,12834,12830,12836,12836,12837,12837,12837,12838,12840,12840,12841,12839,12840,12841,12841,12840,12842,12841,12841,12841,12842,12841,12841,12842,12849,12849]} 1. e4 {[%emt 0:00:04]} e5 {[%emt 0:00:06]} 2. Nf3 {[%emt 0:00:02]} Nc6 {[%emt 0:00:00]} 3. Bb5 {[%emt 0:00:05]} Nf6 {[%emt 0:00:03]} 4. d3 {[%emt 0:00:01]} Bc5 {[%emt 0:00:02]} 5. c3 {[%emt 0:00:04]} O-O {[%emt 0:00:07]} 6. O-O {[%emt 0:00:02] C65: Ruy Lopez: Berlin Defence (3...Nf6), unusual lines and 4 0-0 Bc5.} d5 {[%emt 0:00:01] The modern move.} 7. Nbd2 {[%emt 0:00:07]} dxe4 {[%emt 0:00:17]} 8. dxe4 {[%emt 0:00:00] The position is equal.} a5 {[%emt 0:00:09]} 9. a4 {[%emt 0:00:30]} Bg4 {[%emt 0:00:16]} 10. h3 {[%emt 0:00:17]} Bh5 {[%emt 0:00:02]} 11. Qc2 {[%emt 0:00:09]} Qe7 {[%emt 0:00:23]} 12. Nh4 {[%emt 0:00:27]} Bg6 {[%emt 0:00:50] [#]} 13. Nxg6 $146 {[%emt 0:00:56]} ({Predecessor:} 13. g3 Na7 14. Bc4 Nc8 15. Nxg6 hxg6 16. Kg2 Nd6 17. Ba2 Qd7 18. Qd3 {1-0 Nevednichy,V (2547)-Brumen,D (2359) Mediterranean op-A 4th 2010 (3)}) 13... fxg6 {[%emt 0:00:02]} 14. Nc4 {[%emt 0:01:24][%cal Bd2c4,Bc4a5,Ba5b7,Bb7c5][%mdl 32]} Nh5 {[%emt 0:01:00]} 15. Kh2 {[%emt 0:01:13] Prevents Ng3} Na7 {[%emt 0:01:19] Threatens to win with ...c6.} 16. Nxa5 {[%emt 0:00:42]} Nxb5 {[%emt 0:02:34]} 17. axb5 {[%emt 0:00:00]} Qf6 {[%emt 0:02:49][%cal Rc5f2]} 18. Nxb7 {[%emt 0:04:50]} Rxa1 {[%emt 0:00:03]} 19. Nxc5 {[%emt 0:00:00][%cal Oc1g5] And now Bg5! would win.} Qf7 {[%emt 0:00:13]} 20. f3 {[%emt 0:00:54]} Nf4 {[%emt 0:00:29]} 21. Rd1 {[%emt 0:00:16]} (21. c4 $14) 21... Qc4 $2 {[%emt 0:00:54][%mdl 8192] This move loses the game for Black.} (21... Nxg2 $1 $15 22. Qb3 (22. Qxg2 $2 {too greedy.} Rxc1 23. Qe2 Rxd1 $19) 22... Nf4 23. Qxf7+ Rxf7 24. Rd8+ Rf8 25. Rxf8+ {[%mdl 64] Remove Defender} Kxf8 26. Bxf4 exf4 27. Ne6+ Ke8 28. Nxc7+ Kd7) 22. Nd7 $1 $18 {[%emt 0:01:07][%csl LRe5,LRf8]} Re8 {[%emt 0:00:48] [#]} 23. Nxe5 $1 {[%emt 0:00:02][%mdl 512]} Rxe5 {[%emt 0:00:30]} (23... Qxb5 24. Bxf4) 24. Bxf4 {[%emt 0:00:25][%mdl 64] Discovered Attack} Rxd1 {[%emt 0:00:05]} 25. Qxd1 {[%emt 0:00:00]} Rxb5 {[%emt 0:00:11][%mdl 4096] Endgame KQR-KQB} (25... Qxb5 $142 26. Bxe5 Qxe5+ 27. Kg1 Qg3 28. Qd8+ Kf7 29. Qd7+ Kf6 30. Qd4+ Kf7) 26. Qd8+ {[%emt 0:00:02] White is clearly winning.} Kf7 {[%emt 0:00:02]} 27. Qd7+ {[%emt 0:00:00]} ({Stronger than} 27. Qxc7+ Qxc7 28. Bxc7 Rxb2 $11) 27... Kf8 {[%emt 0:00:23]} 28. Bxc7 {[%emt 0:00:05] Threatening mate with Bd6+.} h6 {[%emt 0:00:02]} (28... h5 $142 29. Qd8+ Kf7) 29. Bb6 {[%emt 0:01:39][%mdl 64] Decoy} Rxb2 {[%emt 0:01:04]} 30. Bd4 {[%emt 0:00:01]} Qf7 {[%emt 0:00:01]} 31. Qd8+ {[%emt 0:00:02]} Qe8 {[%emt 0:00:01] [#]} 32. Bxg7+ $1 {[%emt 0:00:01][%mdl 576] Double Attack} Kf7 {[%emt 0:00:00]} 33. Qf6+ {[%emt 0:00:00]} Kg8 {[%emt 0:00:02]} 34. Bxh6 {[%emt 0:00:00][%csl Gh6][%cal Rf6g7]} Qf7 {[%emt 0:00:07] Against Qg7+} 35. Qxf7+ {[%emt 0:00:06]} Kxf7 {[%emt 0:00:00] KR-KB} 36. Be3 {[%emt 0:00:01]} Rc2 {[%emt 0:00:08] [#]} 37. Bd4 $1 {[%emt 0:00:02] aiming for h4.} g5 {[%emt 0:00:00]} 38. Kg3 {[%emt 0:00:12]} Kg6 {[%emt 0:00:02]} 39. Be5 {[%emt 0:00:26]} Kh5 {[%emt 0:00:06]} (39... Kf7 $142 40. Bd4 Re2) 40. Bf6 {[%emt 0:00:05]} Kg6 {[%emt 0:00:01]} 41. Be7 {[%emt 0:00:06]} Rxc3 {[%emt 0:00:08]} 42. h4 {[%emt 0:00:01]} gxh4+ {[%emt 0:00:03]} 43. Kxh4 {[%emt 0:00:07]} Rc7 {[%emt 0:00:07]} 44. Bd6 {[%emt 0:00:19]} Rc6 {[%emt 0:00:04]} 45. Bf4 {[%emt 0:00:02]} Rc2 {[%emt 0:00:02]} 46. g3 {[%emt 0:00:01]} Rf2 {[%emt 0:00:06]} 47. Kg4 {[%emt 0:00:01]} Rf1 {[%emt 0:00:01]} 48. Bg5 {[%emt 0:00:05]} Re1 {[%emt 0:00:04]} 49. Kf4 {[%emt 0:00:02]} Rf1 {[%emt 0:00:05]} 50. g4 {[%emt 0:00:01]} Kf7 {[%emt 0:00:06]} 51. Kg3 {[%emt 0:00:12]} Kg6 {[%emt 0:00:03]} 52. Be3 {[%emt 0:00:04]} Re1 {[%emt 0:00:09]} 53. Kf2 {[%emt 0:00:01]} Rh1 {[%emt 0:00:02]} 54. f4 {[%emt 0:00:01][%cal Bf3f4,Bf4f5][%mdl 32]} Rh3 {[%emt 0:00:02]} 55. f5+ {[%emt 0:00:08]} Kf6 {[%emt 0:00:02]} 56. Bf4 {[%emt 0:00:00]} Kf7 {[%emt 0:00:15]} 57. g5 {[%emt 0:00:09][%cal Bg4g5,Bg5g6,Bg6g7][%mdl 32]} Rb3 {[%emt 0:00:03]} 58. Be3 {[%emt 0:00:05]} Rb1 {[%emt 0:00:05]} 59. g6+ {[%emt 0:00:02]} Kf6 {[%emt 0:00:01]} 60. Bd4+ {[%emt 0:00:01]} Kg5 {[%emt 0:00:02]} 61. g7 {[%emt 0:00:05]} Rb8 {[%emt 0:00:02]} 62. Kf3 {[%emt 0:00:07]} Rb3+ {[%emt 0:00:02]} 63. Be3+ {[%emt 0:00:01] Weighted Error Value: White=0.31/Black=0.46} 1-0

[Event "ChessKid Cup Div-III 2023"]
[Site "Online"]
[Date "2023.05.25"]
[Round "56.2"]
[White "Kamsky, Gata"]
[Black "Lazavik, Denis"]
[Result "1/2-1/2"]
[ECO "C67"]
[WhiteElo "2665"]
[BlackElo "2544"]
[Annotator "TA"]
[PlyCount "58"]
[EventDate "2023.05.21"]
[EventType "k.o."]
[EventCountry "NET"]
[SourceTitle "playchess.com"]
[Source "ChessBase"]
[SourceQuality "1"]
[TimeControl "900+3"]

{[%evp 19,58,4,20,3,4,0,13,17,16,12,12,0,0,0,17,7,32,8,4,10,8,9,13,0,0,0,0,4,64,0,0,0,0,-6,0,-11,-22,-74,-33,-81,-70]} 1. e4 {[%emt 0:00:04]} e5 {[%emt 0:00:06]} 2. Nf3 {[%emt 0:00:04]} Nc6 {[%emt 0:00:01]} 3. Bb5 {[%emt 0:00:03]} Nf6 {[%emt 0:00:02]} 4. O-O {[%emt 0:00:16]} Nxe4 {[%emt 0:00:01]} 5. d4 {[%emt 0:00:02]} Nd6 {[%emt 0:00:01]} 6. Bxc6 {[%emt 0:00:01]} dxc6 {[%emt 0:00:01]} 7. dxe5 {[%emt 0:00:00]} Nf5 {[%emt 0:00:00]} 8. Qxd8+ {[%emt 0:00:02]} Kxd8 {[%emt 0:00:00]} 9. Rd1+ {[%emt 0:00:01]} Ke8 {[%emt 0:00:01]} 10. Nc3 {[%emt 0:00:00]} Be7 {[%emt 0:00:02]} 11. g3 {[%emt 0:00:39] C67: Ruy Lopez: Berlin Defence: 4 0-0 Nxe4.} (11. h3 h5 12. g3 Be6 13. b3 Rd8 14. Bf4 Rxd1+ 15. Rxd1 b6 16. Ng5 Rh6 17. Nxe6 Rxe6 18. Ne4 c5 19. c3 Bd8 20. a4 a5 {1-0 Kamsky,G (2658)-Lazavik,D (2483) Titled Tuesday intern op 15 Mar Early blitz 2022 (8)}) 11... Be6 {[%emt 0:01:20]} 12. b3 {[%emt 0:02:21]} Rd8 {[%emt 0:00:40]} 13. Bb2 {[%emt 0:00:03] The position is equal.} h5 {[%emt 0:01:08]} 14. h3 {[%emt 0:00:09] [#]} a5 $146 {[%emt 0:00:54]} ({Predecessor:} 14... Nh6 15. Kg2 Bf5 16. Ne1 g5 17. Ne2 Rf8 18. f3 Bh7 19. Rxd8+ Kxd8 20. Rd1+ Kc8 {½-½ Martynov,A (2382)-Romm,M (2453) RUS-ch sf 12-1 email 2012}) 15. Ne4 {[%emt 0:00:21]} Bd5 {[%emt 0:01:19]} 16. Nfg5 {[%emt 0:00:18]} b5 {[%emt 0:00:29]} 17. Rac1 {[%emt 0:01:16]} (17. a4 $5 {[%cal Ra4b5]}) 17... c5 {[%emt 0:02:24]} 18. c4 {[%emt 0:00:28]} (18. h4 {simplifies} Bxe4 19. Rxd8+ Bxd8 20. Nxe4 Be7 21. a4) 18... bxc4 {[%emt 0:00:02]} 19. bxc4 {[%emt 0:00:02]} Bc6 {[%emt 0:00:01]} 20. Rxd8+ {[%emt 0:00:25]} Bxd8 {[%emt 0:00:02]} 21. Re1 {[%emt 0:01:27]} Bxg5 {[%emt 0:03:39]} 22. Nxg5 {[%emt 0:00:03]} Nd4 {[%emt 0:00:00]} 23. f4 {[%emt 0:02:00]} Ke7 {[%emt 0:00:59]} (23... h4 $11 24. g4 Ne6) 24. Ba3 {[%emt 0:00:06]} (24. e6 $1 $14 f6 25. Ba3) 24... Ne6 $11 {[%emt 0:00:02]} 25. Nxe6 {[%emt 0:02:49]} Kxe6 {[%emt 0:00:01]} 26. Rd1 {[%emt 0:00:13] Prevents Rd8.} Rg8 {[%emt 0:00:52]} 27. Kf2 {[%emt 0:00:15]} g5 {[%emt 0:00:03]} 28. Ke3 {[%emt 0:00:02]} (28. fxg5 $11 Rxg5 29. Bc1 Rxe5 30. Bf4) 28... Bg2 {[%emt 0:00:17]} 29. Bxc5 {[%emt 0:01:19]} (29. f5+ $1 $15 {was preferrable.} Kxf5 30. Rd7) 29... Bxh3 {[%emt 0:00:03] Weighted Error Value: White=0.16 (very precise) /Black=0.11 (very precise)} 1/2-1/2

[Event "ChessKid Cup Div-III 2023"]
[Site "Online"]
[Date "2023.05.25"]
[Round "56.3"]
[White "Navara, David"]
[Black "Bernadskiy, Vitaliy"]
[Result "0-1"]
[ECO "A29"]
[WhiteElo "2678"]
[BlackElo "2592"]
[Annotator "TA"]
[PlyCount "62"]
[EventDate "2023.05.21"]
[EventType "k.o."]
[EventCountry "NET"]
[SourceTitle "playchess.com"]
[Source "ChessBase"]
[SourceQuality "1"]
[TimeControl "900+3"]

{[%evp 14,62,0,0,0,0,0,6,55,47,36,54,126,79,76,65,138,138,222,219,223,183,183,178,198,170,170,180,193,109,540,539,29970,345,351,348,392,387,382,370,377,374,366,280,364,367,350,367,342,220,283]} 1. c4 {[%emt 0:00:08]} e5 {[%emt 0:05:33]} 2. g3 {[%emt 0:00:04]} Nf6 {[%emt 0:00:04]} 3. Bg2 {[%emt 0:00:04]} d5 {[%emt 0:00:04]} 4. cxd5 {[%emt 0:00:03]} Nxd5 {[%emt 0:00:03]} 5. Nc3 {[%emt 0:00:13]} Nb6 {[%emt 0:00:05]} 6. Nf3 {[%emt 0:00:05]} Nc6 {[%emt 0:00:04]} 7. O-O {[%emt 0:00:03]} Be7 {[%emt 0:00:05]} 8. b3 {[%emt 0:00:07][%cal Od2d4]} Bg4 {[%emt 0:00:06] A29: English Opening: Four Knights Variation with 4 g3.} 9. Bb2 {[%emt 0:00:30]} Qd7 {[%emt 0:00:04]} 10. Rc1 {[%emt 0:00:28]} Bh3 {[%emt 0:00:11]} (10... f6 $11 {deserves consideration.}) 11. Bxh3 {[%emt 0:00:52]} Qxh3 {[%emt 0:00:03]} 12. Nb5 {[%emt 0:00:04][%csl LRc7,LRe5] [#]} Bd6 $146 {[%emt 0:00:37]} (12... O-O $14) ({Predecessor:} 12... e4 13. Ne5 Nd5 14. Nxc6 bxc6 15. Qc2 O-O 16. Qxc6 Rad8 17. Nxc7 Nxc7 18. Qxc7 Rd5 19. Qf4 Rh5 20. g4 Bd6 21. Qxd6 Qxg4+ 22. Qg3 {1-0 Sarno,S (2330)-Sorcinelli,F (2118) Torino-ch 36th playoff 2011 (8.1)}) 13. Qc2 {[%emt 0:01:22]} (13. e4 $142) 13... O-O $16 {[%emt 0:00:19] [#]} 14. d4 $1 {[%emt 0:00:15][%cal Rd4e5]} Rfe8 {[%emt 0:01:10]} (14... Nb4 $14 15. Qb1 exd4) 15. dxe5 {[%emt 0:01:11]} Bxe5 {[%emt 0:00:03]} (15... Nxe5 $16 {was necessary.} 16. Nxc7 Nxf3+ 17. exf3 Rec8) 16. Bxe5 $18 {[%emt 0:00:18]} Nxe5 {[%emt 0:00:03]} 17. Nxc7 {[%emt 0:00:04]} Nxf3+ {[%emt 0:01:36]} 18. exf3 {[%emt 0:00:03][%cal Be2f3,Bf3f4][%mdl 32]} Re5 {[%emt 0:00:28][%cal Oe5h5] [#]} 19. f4 $1 {[%emt 0:00:45]} ({Don't play} 19. Nxa8 $6 Rh5 20. Rfe1 Qxh2+ 21. Kf1 Qh3+ 22. Ke2 Re5+ 23. Kd2 Qd7+ 24. Qd3 Rd5 $16) 19... Rh5 {[%emt 0:00:19][%csl Gh5][%cal Rh3h2]} 20. f3 $36 {[%emt 0:00:04][%mdl 2048] White is in control.} Rc8 {[%emt 0:00:07]} 21. g4 {[%emt 0:00:34]} ({Better is} 21. Rfd1 $18) 21... Rxc7 $2 {[%emt 0:00:31][%mdl 8192] [#] Loses the game.} 22. Rfe1 $1 {[%emt 0:05:13][%cal Re1e8]} Nd7 {[%emt 0:01:17]} (22... Kf8 23. Qe2) 23. Qd2 {[%emt 0:00:04]} (23. Re8+ {mates} Nf8 24. Qxc7 Qxh2+ 25. Kf1 g6 26. gxh5 Qxh5 27. Kf2 Qh4+ 28. Ke3) 23... Rxc1 {[%emt 0:01:16]} 24. Rxc1 {[%emt 0:00:03] Threatening mate with Rc8+.} Nf8 {[%emt 0:00:28] Strongly threatening ...Rh6.} 25. gxh5 {[%emt 0:00:04]} Qxf3 {[%emt 0:00:04][%mdl 4096] Endgame [#] KQR-KQN} 26. h6 {[%emt 0:00:03]} Qh5 {[%emt 0:00:31]} (26... Qh3 27. hxg7) 27. hxg7 {[%emt 0:01:11]} Ng6 {[%emt 0:00:04]} 28. Rc3 {[%emt 0:02:11] Black must now prevent Qd4.} Kxg7 {[%emt 0:00:13]} 29. Qd4+ {[%emt 0:00:09]} Kh6 {[%emt 0:00:06]} 30. Rg3 {[%emt 0:00:10] And now Qc3 would win.} (30. Qxa7 $2 {is the wrong capture.} Qd1+ 31. Kg2 Qd2+ 32. Qf2 Qxc3 $19) 30... Qf5 {[%emt 0:00:06]} 31. Qd2 {[%emt 0:00:09] aiming for Qc3.} ({Weaker is} 31. Qxa7 Qb1+ 32. Kg2 Qe4+ 33. Kg1 Qb1+ 34. Kg2 Qe4+ 35. Kg1 Qb1+ $11) 31... Qc5+ {[%emt 0:00:06][%mdl 32768] Weighted Error Value: White=0.48/Black=0.60. Loss on time!?} 0-1

[Event "ChessKid Cup Div-III 2023"]
[Site "Online"]
[Date "2023.05.25"]
[Round "57.1"]
[White "Lazavik, Denis"]
[Black "Bernadskiy, Vitaliy"]
[Result "1-0"]
[ECO "A40"]
[WhiteElo "2544"]
[BlackElo "2592"]
[Annotator "TA"]
[PlyCount "51"]
[EventDate "2023.05.21"]
[EventType "k.o."]
[EventCountry "NET"]
[SourceTitle "playchess.com"]
[Source "ChessBase"]
[SourceQuality "1"]
[TimeControl "900+3"]

{[%evp 9,51,50,59,30,39,38,52,45,54,38,79,64,93,84,116,126,162,101,122,106,87,100,115,94,113,84,101,48,39,46,525,514,589,581,1371,1236,990,553,694,682,29981,29978,29982,512]} 1. d4 {[%emt 0:00:03][%cal Bd2d4,Bd4d5][%mdl 32]} g6 {[%emt 0:00:05]} 2. c4 {[%emt 0:00:04]} Bg7 {[%emt 0:00:01]} 3. Nf3 {[%emt 0:00:03]} c5 {[%emt 0:00:06]} 4. d5 {[%emt 0:00:04]} b5 {[%emt 0:00:30]} 5. cxb5 {[%emt 0:00:14]} a6 {[%emt 0:00:01]} 6. bxa6 {[%emt 0:00:14] A40: Unusual replies to 1 d4.} Bxa6 {[%emt 0:00:01]} 7. Nc3 {[%emt 0:00:10]} d6 {[%emt 0:00:02]} 8. e4 {[%emt 0:01:07] White is slightly better.} Bxf1 {[%emt 0:00:03]} 9. Kxf1 {[%emt 0:00:01]} Nd7 {[%emt 0:00:01]} 10. g3 {[%emt 0:00:07]} Qa5 {[%emt 0:00:44]} 11. Bd2 {[%emt 0:00:47] [#]} Nb6 $146 {[%emt 0:00:04]} ({Predecessor:} 11... Ngf6 12. Kg2 O-O 13. h3 Rfb8 14. b3 Qa3 15. Re1 Ne8 16. Rc1 Nc7 17. Rc2 Qa7 18. Qe2 Qa6 19. Qxa6 Rxa6 20. Na4 Nb5 21. Bc1 Kf8 22. Bb2 Bxb2 {½-½ Kamberi,S (2352)-Wojtkiewicz,A (2568) Thompson Memorial op 2001 (5)}) 12. Qe2 {[%emt 0:01:26] Strongly threatening Nb5.} Na4 {[%emt 0:00:46][%cal Ra4c3]} 13. Kg2 {[%emt 0:02:34]} (13. Nb5 $18 Qd8 14. Rb1) 13... Nxc3 $16 {[%emt 0:00:51]} 14. Bxc3 {[%emt 0:00:14]} Bxc3 {[%emt 0:00:01]} 15. bxc3 {[%emt 0:00:00]} Qxc3 {[%emt 0:00:10]} 16. e5 {[%emt 0:00:18][%cal Be4e5,Be5d6,Bd6d7][%mdl 32] Wards off Nf6} Kf8 {[%emt 0:00:28]} 17. Rhe1 {[%emt 0:00:30] Rab1 would be deadly.} Kg7 {[%emt 0:00:07] [#]} 18. Rac1 {[%emt 0:01:10]} (18. Rab1 $1 $16 {[%cal Rb1b3]}) 18... Qa3 $14 {[%emt 0:00:09]} 19. Ng5 {[%emt 0:00:57][%cal Og5f7] And now Nxf7! would win.} h6 $2 {[%emt 0:01:03][%mdl 8192] [#] A mistake that costs the game.} (19... Qa6 $14) 20. Nxf7 $1 $18 {[%emt 0:00:48][%cal Oe5d6][%mdl 512] aiming for exd6!} Kxf7 {[%emt 0:00:20]} (20... Qxa2 21. Qxa2) 21. exd6 {[%emt 0:00:01]} Re8 {[%emt 0:02:12]} 22. d7 {[%emt 0:00:50] Threatening mate with Qe6+.} Rd8 {[%emt 0:00:09]} 23. Qe5 {[%emt 0:00:03] Threatens to win with Rc4.} Rh7 {[%emt 0:00:22]} 24. Rc3 {[%emt 0:00:05]} Qa8 {[%emt 0:00:18]} 25. Rf3+ {[%emt 0:00:11]} Nf6 {[%emt 0:00:09]} 26. Qxe7+ {[%emt 0:00:09] Artfully played by Lazavik.   Weighted Error Value: White=0.38/Black=1.00} (26. Rxf6+ $142 exf6 27. Qe7+ (27. Qd6 $2 Kg8 $19) 27... Kg8 28. Qe8+ (28. Qxf6 $2 {too greedy.} Qxd5+ 29. Kg1 Rhxd7 $19) 28... Rxe8 29. Rxe8+ Qxe8 30. dxe8=Q+ Kg7 31. d6) 1-0